Cogmind - Beta 13 @@@ ROGUE MODE // 2024.05.04 @ 14:25:51 Player: ToasterKoishi Result: Destroyed by H-88 Terminator with KE Penetrator Performance ------------- Evolutions (9) 4500 Regions Visited (13) 2600 Robots Destroyed (0) 0 Value Destroyed (0) 0 Prototype IDs (1) 20 Alien Tech Used (0) 0 Bonus (7906) 7906 TOTAL SCORE: 15026 Bonus ------- Pacifist 7906 Cogmind --------- Core Integrity 0/1600 Matter 300/300 Energy 100/100 System Corruption 0% Temperature Cool (0) Movement Core (50) Location -1/Access Parts ------- > --- POWER (2) -------- (None) > --- PROPULSION (8) --- (None) > --- UTILITY (13) ----- System Shield > --- WEAPON (2) ------- (None) > --- INVENTORY (5) ---- Small Storage Unit Peak State ------------ > --- POWER ------------ Deuterium Engine Antimatter Reactor > --- PROPULSION ------- Field Propulsion Drive Field Propulsion Drive Field Propulsion Drive Field Propulsion Drive Field Propulsion Drive Field Propulsion Drive Field Propulsion Array > --- UTILITY ---------- Small Storage Unit Improved Heavy Armor Plating Advanced Force Field System Shield System Shield > --- WEAPON ----------- Katana > --- INVENTORY -------- Light Quantum Reactor Field Propulsion Drive Rocket Launcher Micro-nuke Launcher [Rating: 90] Favorites ----------- Power Deuterium Engine Engine Deuterium Engine Reactor Antimatter Reactor Propulsion Field Propulsion Drive Treads Medium Treads Flight Unit Field Propulsion Drive Utility Improved Heavy Armor Plating Device Reaction Control System Storage Small Storage Unit Hackware System Shield Protection Improved Heavy Armor Plating Weapon Katana Launcher Micro-nuke Launcher Slashing Weapon Katana Build | -11 -10 -9 -8 -7 -6 -5 -4 -4 -4 -3 -3 -2 -1 ------- Run | Yrd Mat Mat Mat Fac Fac Fac Fac Upp Upp Res Tes Res Acc Slots Evolved 18 | . . 2 2 2 2 2 2 . . 2 . 2 2 Power 1 | . . . . . . . . . . . . . 1 Propulsion 6 | . . . 2 . 1 1 1 . . 1 . . . Utility 11 | . . 2 . 2 1 1 1 . . 1 . 2 1 Weapon . | . . . . . . . . . . . . . . Parts Attached 27 | . . . . 3 2 9 2 . . 2 . 3 6 Power 3 | . . . . . . 1 . . . . . . 2 Engine 1 | . . . . . . 1 . . . . . . . Core . | . . . . . . . . . . . . . . Reactor 2 | . . . . . . . . . . . . . 2 Propulsion 12 | . . . . 1 1 6 1 . . 1 . . 2 Treads 2 | . . . . 1 . . . . . . . . 1 Leg . | . . . . . . . . . . . . . . Wheel . | . . . . . . . . . . . . . . Hover . | . . . . . . . . . . . . . . Flight 10 | . . . . . 1 6 1 . . 1 . . 1 Utility 9 | . . . . 1 1 1 1 . . 1 . 3 1 Device 4 | . . . . 1 1 . 1 . . . . . 1 Storage 1 | . . . . . . . . . . 1 . . . Processor . | . . . . . . . . . . . . . . Hackware 3 | . . . . . . . . . . . . 3 . Protection 1 | . . . . . . 1 . . . . . . . Artifact . | . . . . . . . . . . . . . . Weapon 3 | . . . . 1 . 1 . . . . . . 1 Energy Gun . | . . . . . . . . . . . . . . Energy Cannon . | . . . . . . . . . . . . . . Ballistic Gun . | . . . . . . . . . . . . . . Ballistic Cannon . | . . . . . . . . . . . . . . Launcher 2 | . . . . 1 . . . . . . . . 1 Special Weapon . | . . . . . . . . . . . . . . Impact Weapon . | . . . . . . . . . . . . . . Slashing Weapon 1 | . . . . . . 1 . . . . . . . Piercing Weapon . | . . . . . . . . . . . . . . Special Melee Weapon . | . . . . . . . . . . . . . . Unidentified Prototypes 1 | . . . . . 1 . . . . . . . . Parts Lost 21 | . . . . 1 1 1 1 . . . . . 17 Power 2 | . . . . . . . . . . . . . 2 Propulsion 12 | . . . . . 1 1 1 . . . . . 9 Utility 5 | . . . . 1 . . . . . . . . 4 Weapon 2 | . . . . . . . . . . . . . 2 Highest Loss Streak 14 | . . . . 1 1 1 1 . . . . . 14 To Critical Strikes . | . . . . . . . . . . . . . . Average Slot Usage (%) 26 | . . . . 4 9 13 48 52 52 54 57 56 47 Engine 1 | . . . . . . 1 5 5 5 4 4 4 3 Treads 1 | . . . . . 5 . . . . . . . . Flight 13 | . . . . . 2 9 31 31 31 31 33 30 21 Device 1 | . . . . 4 . . 1 5 5 4 4 4 1 Hackware 1 | . . . . . . . . . . . . 4 9 Protection 1 | . . . . . . . 5 5 5 4 4 4 3 Slashing Weapon 1 | . . . . . . 2 5 5 5 4 4 4 3 Naked Turns 257 | . 58 58 36 47 . 58 . . . . . . . Heaviest Build 57 | . . . . 1 6 26 27 27 27 32 32 32 57 Greatest Support 57 | 3 3 3 3 3 3 42 35 35 35 35 35 35 57 Greatest Overweight (x) 1 | . . . . . 1 . . . . . . . . Average Overweight (x) . | . . . . . . . . . . . . . . Largest Inventory Capacity 8 | 5 5 5 5 5 5 5 5 5 5 8 8 8 8 Average Capacity 5 | 5 5 5 5 5 5 5 5 5 5 7 8 8 6 Most Carried 6 | 2 3 3 4 5 5 5 5 5 5 6 6 6 5 Average Carried 4 | 1 2 3 3 4 4 4 4 5 5 5 6 5 3 Final Capacity 8 | 5 5 5 5 5 5 5 5 5 5 8 8 8 5 Final Carried 6 | 2 3 3 4 5 5 4 5 5 5 6 6 4 1 Class Distribution -------------------- 54% | Mutant 28% | Sprinter 11% | Hacker-Sprinter 5% | Hacker-Mutant Dominant Class ---------------- Mutant | -10/Materials Mutant | -9/Materials Mutant | -8/Materials Mutant | -7/Factory Mutant | -6/Factory Mutant | -5/Factory Sprinter | -4/Factory Sprinter | -4/Upper Caves Sprinter | -4/Upper Caves Sprinter | -3/Research Sprinter | -3/Testing Sprinter | -2/Research Hacker-Sprinter | -1/Access Resources | -11 -10 -9 -8 -7 -6 -5 -4 -4 -4 -3 -3 -2 -1 ----------- Run | Yrd Mat Mat Mat Fac Fac Fac Fac Upp Upp Res Tes Res Acc Matter Collected 350 | 166 32 . . . . . 91 . . . . . 61 Remotely . | . . . . . . . . . . . . . . Salvage Created . | . . . . . . . . . . . . . . Parts . | . . . . . . . . . . . . . . Haulers Intercepted . | . . . . . . . . . . . . . . Recyclers Shooed . | . . . . . . . . . . . . . . Parts Field Recycled . | . . . . . . . . . . . . . . Retrieved Matter . | . . . . . . . . . . . . . . Parts Self-Destructed . | . . . . . . . . . . . . . . Prevented . | . . . . . . . . . . . . . . Kills | -11 -10 -9 -8 -7 -6 -5 -4 -4 -4 -3 -3 -2 -1 ------- Run | Yrd Mat Mat Mat Fac Fac Fac Fac Upp Upp Res Tes Res Acc Combat Hostiles Destroyed . | . . . . . . . . . . . . . . Classes Destroyed . | . . . . . . . . . . . . . . Best Kill Streak . | . . . . . . . . . . . . . . Combat Bots Only . | . . . . . . . . . . . . . . Max Kills in Single Turn . | . . . . . . . . . . . . . . Gunslinging . | . . . . . . . . . . . . . . Exploded . | . . . . . . . . . . . . . . Melee . | . . . . . . . . . . . . . . Uniques/NPCs Destroyed . | . . . . . . . . . . . . . . Combat | -11 -10 -9 -8 -7 -6 -5 -4 -4 -4 -3 -3 -2 -1 -------- Run | Yrd Mat Mat Mat Fac Fac Fac Fac Upp Upp Res Tes Res Acc Hostile Shots Fired 607 | . 34 10 19 48 41 26 18 10 . 1 24 4 372 Missed 242 | . 19 7 8 20 16 11 11 6 . 1 20 2 121 Damage Taken 5151 | . 199 35 287 448 497 273 72 64 . . 91 54 3131 Core 3081 | . 199 35 287 420 286 209 . . . . . 26 1619 Absorbed by Shields 49 | . . . . . . . . . . . . . 49 Core Remaining (%) 74 | 100 20 91 47 40 66 79 . . 100 . 100 98 . Volleys Fired 1 | . . . . 1 . . . . . . . . . Largest 1 | . . . . 1 . . . . . . . . . Hottest 33 | . . . . 33 . . . . . . . . . Shots Fired 1 | . . . . 1 . . . . . . . . . Gun . | . . . . . . . . . . . . . . Cannon . | . . . . . . . . . . . . . . Launcher 1 | . . . . 1 . . . . . . . . . Special . | . . . . . . . . . . . . . . Kinetic . | . . . . . . . . . . . . . . Thermal . | . . . . . . . . . . . . . . Explosive 1 | . . . . 1 . . . . . . . . . Electromagnetic . | . . . . . . . . . . . . . . Robot Hit Streak . | . . . . . . . . . . . . . . Robot Miss Streak . | . . . . . . . . . . . . . . Penetration Max . | . . . . . . . . . . . . . . Secondary Targets . | . . . . . . . . . . . . . . Shots Hit Robots . | . . . . . . . . . . . . . . Core Hits 3 | . . . . . 2 . . . . . . . 1 Critical Kills . | . . . . . . . . . . . . . . Critical Parts Destroyed . | . . . . . . . . . . . . . . Critical Strikes . | . . . . . . . . . . . . . . Melee Attacks 1 | . . . . . . 1 . . . . . . . Impact . | . . . . . . . . . . . . . . Slashing 1 | . . . . . . 1 . . . . . . . Piercing . | . . . . . . . . . . . . . . Sneak Attacks . | . . . . . . . . . . . . . . Combat Hostiles . | . . . . . . . . . . . . . . Follow-up Attacks . | . . . . . . . . . . . . . . Damage Inflicted 59 | . 11 . 4 13 18 . . . . . . . 13 Guns . | . . . . . . . . . . . . . . Cannons . | . . . . . . . . . . . . . . Explosions . | . . . . . . . . . . . . . . Melee . | . . . . . . . . . . . . . . Ramming 59 | . 11 . 4 13 18 . . . . . . . 13 Kinetic . | . . . . . . . . . . . . . . Thermal . | . . . . . . . . . . . . . . Explosive . | . . . . . . . . . . . . . . Electromagnetic . | . . . . . . . . . . . . . . Impact . | . . . . . . . . . . . . . . Slashing . | . . . . . . . . . . . . . . Piercing . | . . . . . . . . . . . . . . Highest Corruption 4 | . 1 . . . 4 . . 1 1 . . . . Average Corruption 2 | . 1 . . . 4 . . 1 1 . . . . Corruption Purged . | . . . . . . . . . . . . . . Corruption Blocked . | . . . . . . . . . . . . . . Effects 1 | . . . . . 1 . . . . . . . . Energy Discharges 1 | . . . . . 1 . . . . . . . . Overload Shots . | . . . . . . . . . . . . . . Overflow Damage . | . . . . . . . . . . . . . . Projectiles . | . . . . . . . . . . . . . . Explosions . | . . . . . . . . . . . . . . Melee . | . . . . . . . . . . . . . . Knockbacks . | . . . . . . . . . . . . . . Impact . | . . . . . . . . . . . . . . Kinetic . | . . . . . . . . . . . . . . Secondary . | . . . . . . . . . . . . . . Self-Inflicted Damage 26 | . 5 . 2 6 8 . . . . . . . 5 Shots . | . . . . . . . . . . . . . . Rammed 12 | . 1 . 2 1 4 . . . . . . . 4 Targets Rammed 12 | . 1 . 2 1 4 . . . . . . . 4 Kicked . | . . . . . . . . . . . . . . Crushed . | . . . . . . . . . . . . . . Highest Temperature 178 | . . . . . . 1 3 . . . 15 . 178 Average Temperature 73 | . . . . . . 1 3 . . . 15 . 74 Received Heat Transfer 282 | . 36 21 27 63 36 72 . . . . . 18 9 Siege Activations . | . . . . . . . . . . . . . . Robots Corrupted . | . . . . . . . . . . . . . . Combat Hostiles . | . . . . . . . . . . . . . . Parts Fried . | . . . . . . . . . . . . . . Impact Corruptions . | . . . . . . . . . . . . . . Robots Melted . | . . . . . . . . . . . . . . Combat Hostiles . | . . . . . . . . . . . . . . Parts Melted . | . . . . . . . . . . . . . . Heat Transferred . | . . . . . . . . . . . . . . Parts Sabotaged . | . . . . . . . . . . . . . . Parts Stolen . | . . . . . . . . . . . . . . Parts Stripped . | . . . . . . . . . . . . . . Power Chain Reactions . | . . . . . . . . . . . . . . Alert | -11 -10 -9 -8 -7 -6 -5 -4 -4 -4 -3 -3 -2 -1 ------- Run | Yrd Mat Mat Mat Fac Fac Fac Fac Upp Upp Res Tes Res Acc Peak Influence 377 | . 52 21 38 115 257 377 219 . . 74 191 137 366 Initial 184 | . . 21 8 16 54 115 184 . . 74 41 107 81 Average 132 | . 15 21 13 65 119 250 195 . . 74 103 111 203 Maximum Alert Level 1 | . . . . . 1 1 1 . . . . . 1 Low Security (%) 79 | 100 100 100 100 100 86 45 64 . . 100 100 100 51 Level 1 20 | . . . . . 13 54 35 . . . . . 48 Level 2 . | . . . . . . . . . . . . . . Level 3 . | . . . . . . . . . . . . . . Level 4 . | . . . . . . . . . . . . . . Level 5 . | . . . . . . . . . . . . . . High Security . | . . . . . . . . . . . . . . Max Security . | . . . . . . . . . . . . . . Squads Dispatched 16 | . . . 1 2 5 . . . . 1 2 1 4 Investigation 9 | . . . . 1 4 . . . . 1 . 1 2 Extermination . | . . . . . . . . . . . . . . Reinforcement 7 | . . . 1 1 1 . . . . . 2 . 2 Assault . | . . . . . . . . . . . . . . Garrison . | . . . . . . . . . . . . . . Intercept . | . . . . . . . . . . . . . . Searches Triggered . | . . . . . . . . . . . . . . Construction Impeded . | . . . . . . . . . . . . . . Haulers Reinforced . | . . . . . . . . . . . . . . Active Scanning Responses . | . . . . . . . . . . . . . . Cargo Convoy Interrupts . | . . . . . . . . . . . . . . Stealth | -11 -10 -9 -8 -7 -6 -5 -4 -4 -4 -3 -3 -2 -1 --------- Run | Yrd Mat Mat Mat Fac Fac Fac Fac Upp Upp Res Tes Res Acc Distress Signals 8 | . 1 . . 1 1 . 1 . . . . 1 3 Communications Jammed . | . . . . . . . . . . . . . . Distress Signals . | . . . . . . . . . . . . . . Times Spotted 126 | . 9 2 6 9 19 15 10 3 . 1 14 8 30 Peak Tracking Total 18 | . 7 2 6 6 9 10 12 3 . 1 13 10 18 Tactical Retreats 17 | . 1 . . 1 3 4 . . . . 1 . 7 Traps | -11 -10 -9 -8 -7 -6 -5 -4 -4 -4 -3 -3 -2 -1 ------- Run | Yrd Mat Mat Mat Fac Fac Fac Fac Upp Upp Res Tes Res Acc Traps Triggered 3 | . 1 . . . 2 . . . . . . . . Indirectly . | . . . . . . . . . . . . . . Trap Hack Attempts . | . . . . . . . . . . . . . . Triggered . | . . . . . . . . . . . . . . Disarmed . | . . . . . . . . . . . . . . Reprogrammed . | . . . . . . . . . . . . . . Reused . | . . . . . . . . . . . . . . Traps Extracted . | . . . . . . . . . . . . . . Installed . | . . . . . . . . . . . . . . Triggered 1 | . . . . . . . . 1 . . . . . Machines | -11 -10 -9 -8 -7 -6 -5 -4 -4 -4 -3 -3 -2 -1 ---------- Run | Yrd Mat Mat Mat Fac Fac Fac Fac Upp Upp Res Tes Res Acc Machines Disabled . | . . . . . . . . . . . . . . Max in Single Turn . | . . . . . . . . . . . . . . Machines Repaired . | . . . . . . . . . . . . . . Machines Dismantled . | . . . . . . . . . . . . . . Machines Sabotaged . | . . . . . . . . . . . . . . Overloaded Fab Kills . | . . . . . . . . . . . . . . Hacking | -11 -10 -9 -8 -7 -6 -5 -4 -4 -4 -3 -3 -2 -1 --------- Run | Yrd Mat Mat Mat Fac Fac Fac Fac Upp Upp Res Tes Res Acc Machines Accessed 14 | . 2 1 . 1 5 . . . . 1 . 1 3 Terminals 13 | . 2 1 . 1 5 . . . . 1 . 1 2 Fabricators . | . . . . . . . . . . . . . . Repair Stations . | . . . . . . . . . . . . . . Recycling Units . | . . . . . . . . . . . . . . Scanalyzers . | . . . . . . . . . . . . . . Garrison Access 1 | . . . . . . . . . . . . . 1 Total Hacks 36 | . 5 2 . 4 13 . . . . 2 . 2 8 Successful 7 | . 1 1 . 1 4 . . . . . . . . Failed 29 | . 4 1 . 3 9 . . . . 2 . 2 8 Catastrophic 13 | . 2 . . 1 2 . . . . 1 . 2 5 Database Lockouts . | . . . . . . . . . . . . . . Manual 13 | . 2 . . 4 5 . . . . 2 . . . Terminals 35 | . 5 2 . 4 13 . . . . 2 . 2 7 Fabricators . | . . . . . . . . . . . . . . Repair Stations . | . . . . . . . . . . . . . . Recycling Units . | . . . . . . . . . . . . . . Scanalyzers . | . . . . . . . . . . . . . . Garrison Access 1 | . . . . . . . . . . . . . 1 Terminal Hacks 6 | . 1 1 . 1 3 . . . . . . . . Open DSF 1 | . . . . . 1 . . . . . . . . Level Access Points 2 | . . . . 1 1 . . . . . . . . Branch Access Points 3 | . 1 1 . . 1 . . . . . . . . Fabricator Hacks . | . . . . . . . . . . . . . . Repair Station Hacks . | . . . . . . . . . . . . . . Recycling Unit Hacks . | . . . . . . . . . . . . . . Scanalyzer . | . . . . . . . . . . . . . . Garrison Access Hacks . | . . . . . . . . . . . . . . Unauthorized Hacks 1 | . . . . . 1 . . . . . . . . Terminals 1 | . . . . . 1 . . . . . . . . Assimilate 1 | . . . . . 1 . . . . . . . . Fabricators . | . . . . . . . . . . . . . . Repair Stations . | . . . . . . . . . . . . . . Recycling Units . | . . . . . . . . . . . . . . Scanalyzers . | . . . . . . . . . . . . . . Garrison Access . | . . . . . . . . . . . . . . Data Cores Recovered . | . . . . . . . . . . . . . . Used . | . . . . . . . . . . . . . . Hacking Detections 12 | . 2 . . 1 4 . . . . 1 . 1 3 Full Trace Events 9 | . 1 . . 1 3 . . . . 1 . 1 2 Feedback Events . | . . . . . . . . . . . . . . Feedback Blocked . | . . . . . . . . . . . . . . Robot Schematics Acquired . | . . . . . . . . . . . . . . Robots Built . | . . . . . . . . . . . . . . Authchips . | . . . . . . . . . . . . . . Time . | . . . . . . . . . . . . . . Total Robot Build Rating . | . . . . . . . . . . . . . . Part Schematics Acquired . | . . . . . . . . . . . . . . Parts Built . | . . . . . . . . . . . . . . Authchips . | . . . . . . . . . . . . . . Time . | . . . . . . . . . . . . . . Total Part Build Rating . | . . . . . . . . . . . . . . Parts Repaired . | . . . . . . . . . . . . . . Time . | . . . . . . . . . . . . . . Parts Recycled . | . . . . . . . . . . . . . . Recycled Matter . | . . . . . . . . . . . . . . Retrieved Matter . | . . . . . . . . . . . . . . Retrieved Components . | . . . . . . . . . . . . . . Parts Scanalyzed . | . . . . . . . . . . . . . . Part Schematics Acquired . | . . . . . . . . . . . . . . Parts Damaged . | . . . . . . . . . . . . . . Bothacking | -11 -10 -9 -8 -7 -6 -5 -4 -4 -4 -3 -3 -2 -1 ------------ Run | Yrd Mat Mat Mat Fac Fac Fac Fac Upp Upp Res Tes Res Acc Used RIF Installer . | . . . . . . . . . . . . . . Robots Hacked . | . . . . . . . . . . . . . . Non-combat . | . . . . . . . . . . . . . . Combat . | . . . . . . . . . . . . . . Robot Hacks Applied . | . . . . . . . . . . . . . . Relay Couplers Released . | . . . . . . . . . . . . . . Fabnet Peak Effective % . | . . . . . . . . . . . . . . Robots Rewired . | . . . . . . . . . . . . . . Allies Hacked . | . . . . . . . . . . . . . . Hacks Repelled . | . . . . . . . . . . . . . . Allies | -11 -10 -9 -8 -7 -6 -5 -4 -4 -4 -3 -3 -2 -1 -------- Run | Yrd Mat Mat Mat Fac Fac Fac Fac Upp Upp Res Tes Res Acc Total Allies 1 | . . . . . 1 . . . . . . . . Largest Group 1 | . . . . . 1 . . . . . . . . Highest-Rated Group 10 | . . . . . 10 . . . . . . . . Highest-Rated Ally 10 | . . . . . 10 . . . . . . . . Total Orders 1 | . . . . . 1 . . . . . . . . EXPLORE 1 | . . . . . 1 . . . . . . . . Ally Attacks . | . . . . . . . . . . . . . . Total Damage . | . . . . . . . . . . . . . . Kills . | . . . . . . . . . . . . . . Allies Corrupted . | . . . . . . . . . . . . . . Allies Melted . | . . . . . . . . . . . . . . Intel | -11 -10 -9 -8 -7 -6 -5 -4 -4 -4 -3 -3 -2 -1 ------- Run | Yrd Mat Mat Mat Fac Fac Fac Fac Upp Upp Res Tes Res Acc Robot Analysis Total . | . . . . . . . . . . . . . . Derelict Logs Recovered . | . . . . . . . . . . . . . . Drone Launches 2 | . . . . . 2 . . . . . . . . Drone Recoveries . | . . . . . . . . . . . . . . Exploration | -11 -10 -9 -8 -7 -6 -5 -4 -4 -4 -3 -3 -2 -1 ------------- Run | Yrd Mat Mat Mat Fac Fac Fac Fac Upp Upp Res Tes Res Acc Turns Passed 1394 | 12 58 58 36 146 329 150 74 82 24 46 71 68 240 Spaces Moved 3118 | 20 111 115 67 275 621 282 213 247 71 122 214 196 564 Core 1429 | 20 111 115 67 275 621 217 . . . . . . 3 Treads . | . . . . . . . . . . . . . . Legs . | . . . . . . . . . . . . . . Wheels . | . . . . . . . . . . . . . . Hover . | . . . . . . . . . . . . . . Flight 1689 | . . . . . . 65 213 247 71 122 214 196 561 Fastest Speed 26 | 50 50 50 50 50 50 30 33 33 33 33 33 33 26 Average Speed 40 | 50 50 50 50 50 50 46 33 33 33 33 33 33 28 Slowest Speed 100 | 50 50 50 50 50 100 50 36 33 33 33 33 33 50 Overloaded Moves . | . . . . . . . . . . . . . . Propulsion Burnouts . | . . . . . . . . . . . . . . Robots Hopped 47 | . . . . . . . 10 . . 2 13 6 16 Cave-ins Triggered . | . . . . . . . . . . . . . . Exploration Rate (%) 18 | 3 36 18 14 11 24 12 11 47 13 4 36 10 23 Regions Visited 13 Branch Regions 3 Pre-discovered Areas . | . . . . . . . . . . . . . . Known Exits Taken 2 | . . . . 1 1 . . . . . . . . Unknown Exits Taken 11 | 1 1 1 1 . . 1 1 1 1 1 1 1 . Scrap Searched . | . . . . . . . . . . . . . . Spaces Dug 9 | . . . . 8 . 1 . . . . . . . Terrain Destroyed 9 | . . . . 8 . 1 . . . . . . . Melee 1 | . . . . . . 1 . . . . . . . Projectile . | . . . . . . . . . . . . . . AOE 8 | . . . . 8 . . . . . . . . . Terrain Rammed . | . . . . . . . . . . . . . . Walls Destroyed . | . . . . . . . . . . . . . . Machines Disabled . | . . . . . . . . . . . . . . Actions | -11 -10 -9 -8 -7 -6 -5 -4 -4 -4 -3 -3 -2 -1 --------- Run | Yrd Mat Mat Mat Fac Fac Fac Fac Upp Upp Res Tes Res Acc Total 3192 | 21 112 114 69 281 633 296 205 246 70 125 200 192 628 Wait 73 | . . . . . 4 4 . . . . . . 65 Move 3020 | 19 110 114 67 274 620 281 193 246 70 117 191 185 533 Hop 38 | . . . . . . . 9 . . 2 9 3 15 Pick Up 14 | 2 1 . 1 1 1 1 1 . . 4 . . 2 Fast Attach 14 | . . . . 2 2 7 1 . . . . 1 1 Attach 13 | . . . . 1 . 2 1 . . 2 . 2 5 Detach 2 | . . . . 1 . . . . . . . . 1 Swap . | . . . . . . . . . . . . . . Drop 4 | . . . . . 2 . . . . . . . 2 Fire 1 | . . . . 1 . . . . . . . . . Melee 1 | . . . . . . 1 . . . . . . . Ram 11 | . 1 . 1 1 4 . . . . . . . 4 Kick . | . . . . . . . . . . . . . . Crush . | . . . . . . . . . . . . . . Escape Stasis 1 | . . . . . . . . . . . . 1 . Rewire . | . . . . . . . . . . . . . . Trap . | . . . . . . . . . . . . . . Miscellaneous . | . . . . . . . . . . . . . . Route ------- -11/Scrapyard -10/Materials (discovered 3 exits: *Mat / *Min x2) -9/Materials (discovered 3 exits: [*Mat] / Min / Sto) -8/Materials -7/Factory (discovered 4 exits: *Fac x4) -6/Factory (discovered 6 exits: *Fac x4 / *Low x2) -5/Factory -4/Factory -4/Upper Caves -4/Upper Caves -3/Research -3/Testing -2/Research -1/Access History --------- Turn | Location | Event 6 | -11/Scrapyard | Discovered new exit (range 14) 13 | -11/Scrapyard | Entered Materials 16 | -10/Materials | Identified exit to Mines 65 | -10/Materials | Discovered new exit (range 10) 67 | -10/Materials | Core integrity fell below 50% 71 | -10/Materials | Entered another Materials area 71 | -9/Materials | Evolved 2 slots: Utility x2 91 | -9/Materials | Identified exit to Mines 91 | -9/Materials | Identified exit to Storage 128 | -9/Materials | Discovered new exit (range 3) 129 | -9/Materials | Entered another Materials area 129 | -8/Materials | Evolved 2 slots: Propulsion x2 159 | -8/Materials | Discovered new exit (range 13) 165 | -8/Materials | Core integrity fell below 50% 165 | -8/Materials | Entered Factory 165 | -7/Factory | Evolved 2 slots: Utility x2 243 | -7/Factory | Identified exit to Factory 293 | -7/Factory | Core integrity fell below 50% 311 | -7/Factory | Entered another Factory area 311 | -6/Factory | Evolved 2 slots: Propulsion x1, Utility x1 328 | -6/Factory | Build established: Mutant 513 | -6/Factory | Discovered new exit (range 14) 610 | -6/Factory | Identified exit to Lower Caves 613 | -6/Factory | Identified exit to Factory 640 | -6/Factory | Entered another Factory area 640 | -5/Factory | Evolved 2 slots: Propulsion x1, Utility x1 789 | -5/Factory | Discovered new exit (range 5) 790 | -5/Factory | Entered another Factory area 790 | -4/Factory | Evolved 2 slots: Propulsion x1, Utility x1 827 | -4/Factory | Spotted B-86 Titan 844 | -4/Factory | Spotted B-86 Titan 859 | -4/Factory | Discovered new exit (range 16) 864 | -4/Factory | Entered Upper Caves 940 | -4/Upper Caves | Ambushed by research squad 944 | -4/Upper Caves | Discovered new exit (range 7) 946 | -4/Upper Caves | Entered another Upper Caves area 968 | -4/Upper Caves | Discovered new exit (range 5) 970 | -4/Upper Caves | Entered Research 970 | -3/Research | Evolved 2 slots: Propulsion x1, Utility x1 1012 | -3/Research | Discovered new exit (range 15) 1016 | -3/Research | Entered Testing 1066 | -3/Testing | Build established: Sprinter 1086 | -3/Testing | Discovered new exit (range 3) 1087 | -3/Testing | Entered Research 1087 | -2/Research | Evolved 2 slots: Utility x2 1152 | -2/Research | Discovered new exit (range 11) 1155 | -2/Research | Entered Access 1155 | -1/Access | Evolved 2 slots: Power x1, Utility x1 1324 | -1/Access | Spotted B-99 Colossus 1325 | -1/Access | Spotted B-99 Colossus 1380 | -1/Access | Core integrity fell below 50% 1387 | -1/Access | Lost 14 parts (2p9n1u2w) 1388 | -1/Access | Core integrity fell below 20% 1395 | -1/Access | Destroyed by H-88 Terminator with KE Penetrator Last Messages --------------- 01383_ Slug penetrates Sealed Heavy Doors. 01383_ Penetrated by Slug. 01383_ Slammed into H-88 Terminator. 01384_ Drone sends a signal. 01385_ Penetrated by Slug. 01385_ Slug penetrates Sealed Heavy Doors. 01389_ Penetrated by Slug. 01389_ Slug penetrates Sealed Heavy Doors. 01389_ Penetrated by Slug. 01389_ Slug penetrates Sealed Heavy Doors. 01389_ Penetrated by Slug. 01389_ Slug penetrates Sealed Heavy Doors. 01389_ Penetrated by Slug. 01390_ System Shield destroyed. 01392_ Slug penetrates Sealed Heavy Doors. 01392_ Slug penetrates H-88 Terminator. 01392_ Slug penetrates Sealed Heavy Doors. 01393_ Penetrated by Slug. 01395_ Slug penetrates Sealed Heavy Doors. 01395_ Penetrated by Slug. Map ----- +----------------------------------------------------+ | [! #??# #????????????# # ????? | | [ #??# ]! #????????????# # """"????? | | =#??# = #????????????# # """"????? | | #??# !! #????????????# # """""???? | | ? ! #??##########????????????# # """""???? | | ? #????????????????????????# +! """""???? | | ?? #????????????????????????# # | | ??########????????????????????????# # | | ????#########????????????????????## ############# | | ???? #????????????????????# ############ | | ???? #????????????????????# | | ???? ] #????????????????????# = | | ???"" #????????????????????# ####### ### | | ??""" #????????????????????######?????# #?? | | """"" #???????????????????????????????# #?? | | """"" ! #???????????????????????????????# #?? | | """"" #???????????????????????????????# #?? | | #???????????????????????????????# #?? | | #???############?????????"####### #?? | | ?? ?????# % % ""%"?????????" #?? | | ???? ??????## B %"%""?????????" #?? | | ######+#########" BB*%""??????????" #?? | | %%""???????????" #?? | | % hhh""???????????" #?? | | ""??????????" #?? | | "@"??????????" #?? | | ################# """??????????" #?? | | #???????????????# "????????????"""" """ #?? | | #???????????????# "????????????""""T""" #?? | | #???????????????#########????????????"####### #?? | | #???????????????????????????????????????????# #?? | | ##############?????????###################### #?? | | # #?????????# ## " # #?? | | # #?????????# ## """ # #?? | | # #?????????# ##"" """ + #?? | | # """"?########### ##"" " # #?? | | / """"?# # ##"T # #?? | | # """"?# # ##"" # #?? | | # [ """"?# " # ##"" # #?? | | # """"?# """ # ! ## # #?? | | # """""# """ # ## # #?? | | # # " # ## # #?? | | # # #! ## = # #?? | | # # # ??# # #?? | | ##+##############"########+#####+############ +?? | | * #?? | | ## % ###################????? ??? | | ##/## = #??????????????????????? ??? | | ? / +??????????????????????? ??? | | #### ########+####???????????????????????????? | +----------------------------------------------------+ Best States ------------- Heat Dissipation 52 Energy Generation 30 Energy Capacity 500 Matter Stores 300 Matter Capacity 300 Sight Range 16 Terrain Scan Range 16 Terrain Scan Density 10 Armor Coverage 600 Evasion (%) 72 Offensive Hacking 10 Defensive Hacking 20 Item Schematics ----------------- None Robot Schematics ------------------ None Fabricated ------------ Nothing Alien Tech Used ----------------- None Achievements -------------- None Challenges ------------ None Game ------ Seed DeepDiametricLance Manual? 0 Play Time 00:39:08 Cumulative 89.5 hours Start 2024.05.04 @ 13:53:28 End 2024.05.04 @ 14:25:51 Sessions 1 Manual Loads 0 Difficulty Rogue Special Mode None Game No. 100 Rogue 100 Adventurer 0 Explorer 0 Win Type - Total 11 Types 10/0/1/0/0/0/0/0/0 Lore% 52 Gallery% 46 Achievement% 46 Wizard Run 0 Options --------- Layout 0 ASCII 0 Keyboard 1 Movement Vi Keybinds 0 Fullscreen 2 Font 16/SmallcapsGlow Map View 64x51 Zoom Use 0% Tactical HUD 1 Map Filters NONE Filters NONE Steam X RUN: 8b41972d-061b-4eef-8ef3-ef133de779ec